fUSD/lending_fUSD_20250623
["ID","MTS","AMOUNT","RATE_DAILY","PERIOD"]
[367089939,1750654253580,-490.0,0.00032876,7]
[367089940,1750654253590,-453.89425983,0.00032876,7]
[367089941,1750654253600,-1612.0,0.00032876,7]
[367089942,1750654253609,-500.0,0.00032876,7]
[367089943,1750654253619,-172.48899038,0.00032876,7]
[367089944,1750654253628,-490.0,0.00032876,7]
[367089945,1750654253637,-490.0,0.00032876,7]
[367089946,1750654253647,-4636.13,0.00032876,7]
[367089947,1750654253657,-670.47,0.00032876,7]
[367089948,1750654253667,-1715.52,0.00032876,7]
[367089949,1750654253677,-791.2,0.00032876,7]
[367089950,1750654253686,-744.34,0.00032876,7]
[367089951,1750654253696,-490.0,0.00032876,7]
[367089952,1750654253705,-490.0,0.00032876,7]
[367089953,1750654253715,-1022.88,0.00032876,7]
[367089954,1750654253724,-3235.16,0.00032876,7]
[367089955,1750654253733,-490.0,0.00032876,7]
[367089956,1750654253743,-490.0,0.00032876,7]
[367089957,1750654253752,-961.72,0.00032876,7]
[367089958,1750654253761,-490.0,0.00032876,7]
[367089959,1750654253771,-490.0,0.00032876,7]
[367089960,1750654253779,-488.43,0.00032876,7]
[367089961,1750654253789,-490.0,0.00032876,7]
[367089962,1750654253798,-490.0,0.00032876,7]
[367089963,1750654253808,-491.13037814,0.00032876,7]
[367089964,1750654253818,-1551.85,0.00032876,7]
[367089965,1750654253827,-772.51,0.00032876,7]
[367089966,1750654253838,-490.0,0.00032876,7]
[367089967,1750654253847,-151.0,0.00032876,7]
[367089968,1750654253856,-490.0,0.00032876,7]
[367089969,1750654253866,-491.46645898,0.00032876,7]
[367089970,1750654253875,-490.0,0.00032876,7]
[367089971,1750654253885,-490.0,0.00032876,7]
[367089972,1750654253894,-209.134452,0.00032876,7]
[367089973,1750654253904,-490.0,0.00032876,7]
[367089974,1750654253914,-490.0,0.00032876,7]
[367089975,1750654253923,-4888.75,0.00032876,7]
[367089976,1750654253933,-507.52810228,0.00032876,7]
[367089977,1750654253942,-1651.96,0.00032876,7]
[367089978,1750654253952,-2259.05,0.00032876,7]
[367089979,1750654253961,-1117.64,0.00032876,7]
[367089980,1750654253970,-490.0,0.00032876,7]
[367089981,1750654253980,-492.19068232,0.00032876,7]
[367089982,1750654253989,-531.31,0.00032876,7]
[367089983,1750654253999,-885.05,0.00032876,7]
[367089984,1750654254008,-625.32,0.00032876,7]
[367089985,1750654254017,-1548.7,0.00032876,7]
[367089986,1750654254026,-490.0,0.00032876,7]
[367089987,1750654254036,-588.12474,0.00032876,7]
[367089988,1750654254045,-461.11610354,0.00032876,7]
[367089989,1750654254054,-1615.73,0.00032876,7]
[367089990,1750654254063,-490.0,0.00032876,7]
[367089991,1750654254073,-1986.42,0.00032876,7]
[367089992,1750654254083,-490.0,0.00032876,7]
[367089993,1750654254093,-490.0,0.00032876,7]
[367089994,1750654254102,-588.12474,0.00032876,7]
[367089995,1750654254113,-490.0,0.00032876,7]
[367089996,1750654254123,-420.755357,0.00032876,7]
[367089997,1750654254133,-420.755357,0.00032876,7]
[367089998,1750654254142,-490.0,0.00032876,7]
[367089999,1750654254153,-1037.11,0.00032876,7]
[367090000,1750654254163,-490.0,0.00032876,7]
[367090001,1750654254173,-490.0,0.00032876,7]
[367090002,1750654254183,-490.0,0.00032876,7]
[367090003,1750654254193,-901.29,0.00032876,7]
[367090004,1750654254203,-490.0,0.00032876,7]
[367090005,1750654254212,-490.62662593,0.00032876,7]
[367090006,1750654254222,-151.0,0.00032876,7]
[367090007,1750654254231,-151.0,0.00032876,7]
[367090008,1750654254241,-420.755357,0.00032876,7]
[367090009,1750654254251,-490.0,0.00032876,7]
[367090010,1750654254261,-420.755357,0.00032876,7]
[367090011,1750654254270,-1253.89,0.00032876,7]
[367090012,1750654254280,-531.2,0.00032876,7]
[367090013,1750654254289,-3239.4,0.00032876,7]
[367090014,1750654254300,-1079.72,0.00032876,7]
[367090015,1750654254310,-490.0,0.00032876,7]
[367090016,1750654254319,-490.0,0.00032876,7]
[367090017,1750654254329,-1733.51,0.00032876,7]
[367090018,1750654254338,-500.0,0.00032876,7]
[367090019,1750654254348,-500.0,0.00032876,7]
[367090020,1750654254357,-490.27535494,0.00032876,7]
[367090021,1750654254367,-500.0,0.00032876,7]
[367090022,1750654254377,-490.0,0.00032876,7]
[367090023,1750654254386,-500.0,0.00032876,7]
[367090024,1750654254396,-500.0,0.00032876,7]
[367090025,1750654254405,-500.0,0.00032876,7]
[367090026,1750654254414,-500.0,0.00032876,7]
[367090027,1750654254424,-500.0,0.00032876,7]
[367090028,1750654254433,-6885.38,0.00032876,7]
[367090029,1750654254445,-500.0,0.00032876,7]
[367090030,1750654254454,-500.0,0.00032876,7]
[367090031,1750654254464,-151.0,0.00032876,7]
[367090032,1750654254473,-500.0,0.00032876,7]
[367090033,1750654254483,-151.0,0.00032876,7]
[367090034,1750654254493,-490.0,0.00032876,7]
[367090035,1750654254502,-500.0,0.00032876,7]
[367090036,1750654254512,-500.0,0.00032876,7]
[367090037,1750654254521,-500.0,0.00032876,7]
[367090038,1750654254531,-500.0,0.00032876,7]
[367090039,1750654254541,-500.0,0.00032876,7]
[367090040,1750654254550,-610.76,0.00032876,7]
[367090041,1750654254559,-490.0,0.00032876,7]
[367090042,1750654254569,-490.0,0.00032876,7]
[367090043,1750654254579,-151.0,0.00032876,7]
[367090044,1750654254588,-490.0,0.00032876,7]
[367090045,1750654254597,-151.0,0.00032876,7]
[367090046,1750654254607,-490.0,0.00032876,7]
[367090047,1750654254616,-490.0,0.00032876,7]
[367090048,1750654254625,-490.0,0.00032876,7]
[367090049,1750654254634,-2095.59,0.00032876,7]
[367090050,1750654254644,-490.0,0.00032876,7]
[367090051,1750654254653,-710.72,0.00032876,7]
[367090052,1750654254663,-589.1,0.00032876,7]
[367090053,1750654254672,-490.0,0.00032876,7]
[367090054,1750654254682,-1828.05,0.00032876,7]
[367090055,1750654254691,-151.0,0.00032876,7]
[367090056,1750654254700,-151.0,0.00032876,7]
[367090057,1750654254710,-487.42455871,0.00032876,7]
[367090058,1750654254718,-1509.41,0.00032876,7]
[367090059,1750654254727,-490.0,0.00032876,7]
[367090060,1750654254736,-1094.4,0.00032876,7]
[367090061,1750654254747,-688.87,0.00032876,7]
[367090062,1750654254756,-11823.47,0.00032876,7]
[367090063,1750654254764,-958.23,0.00032876,7]
[367090064,1750654254774,-490.0,0.00032876,7]
[367090065,1750654254784,-512.41567235,0.00032876,7]
[367090066,1750654254793,-622.34135662,0.00032876,7]
[367090067,1750654254803,-490.0,0.00032876,7]
[367090068,1750654254812,-2835.83,0.00032876,7]
[367090069,1750654254821,-490.0,0.00032876,7]
[367090070,1750654254831,-490.0,0.00032876,7]
[367090071,1750654254840,-490.0,0.00032876,7]
[367090072,1750654254850,-490.0,0.00032876,7]
[367090073,1750654254859,-490.0,0.00032876,7]
[367090074,1750654254868,-700.15,0.00032876,7]
[367090075,1750654254878,-663.81,0.00032876,7]
[367090076,1750654254887,-1855.48,0.00032876,7]
[367090077,1750654254896,-1438.05,0.00032876,7]
[367090078,1750654254907,-490.0,0.00032876,7]
[367090079,1750654254916,-508.05,0.00032876,7]
[367090080,1750654254926,-5345.74,0.00032876,7]
[367090081,1750654254935,-627.07461194,0.00032876,7]
[367090082,1750654254945,-490.0,0.00032876,7]
[367090083,1750654254955,-1313.19,0.00032876,7]
[367090084,1750654254966,-490.0,0.00032876,7]
[367090085,1750654254976,-609.17,0.00032876,7]
[367090086,1750654254986,-2328.53,0.00032876,7]
[367090087,1750654254995,-2092.4,0.00032876,7]
[367090088,1750654255004,-1268.28,0.00032876,7]
[367090089,1750654255014,-899.41,0.00032876,7]
[367090090,1750654255023,-1172.27,0.00032876,7]
[367090091,1750654255033,-218.03587518,0.00032876,7]
[367090092,1750654255042,-490.0,0.00032876,7]
[367090093,1750654255052,-666.85,0.00032876,7]
[367090094,1750654255061,-1947.1,0.00032876,7]
[367090095,1750654255070,-490.0,0.00032876,7]
[367090096,1750654255080,-151.0,0.00032876,7]
[367090097,1750654255089,-2023.32,0.00032876,7]
[367090098,1750654255099,-151.0,0.00032876,7]
[367090099,1750654255110,-490.0,0.00032876,7]
[367090100,1750654255122,-490.46150417,0.00032876,7]
[367090101,1750654255131,-490.0,0.00032876,7]
[367090102,1750654255140,-2594.21,0.00032876,7]
[367090103,1750654255150,-1494.66,0.00032876,7]
[367090104,1750654255159,-519.03,0.00032876,7]
[367090105,1750654255168,-558.0,0.00032876,7]
[367090106,1750654255178,-338.79393871,0.00032876,7]
[367090107,1750654255187,-1421.52,0.00032876,7]
[367090108,1750654255197,-490.0,0.00032876,7]
[367090109,1750654255206,-490.0,0.00032876,7]
[367090110,1750654255215,-554.01,0.00032876,7]
[367090111,1750654255225,-490.0,0.00032876,7]
[367090112,1750654255234,-490.0,0.00032876,7]
[367090113,1750654255244,-524.34,0.00032876,7]
[367090114,1750654255253,-1943.95,0.00032876,7]
[367090115,1750654255263,-1061.09,0.00032876,7]
[367090116,1750654255272,-490.0,0.00032876,7]
[367090117,1750654255282,-490.0,0.00032876,7]
[367090118,1750654255291,-490.0,0.00032876,7]
[367090119,1750654255300,-1909.21,0.00032876,7]
[367090120,1750654255309,-490.0,0.00032876,7]
[367090121,1750654255404,-1837.86,0.00032876,7]
[367090122,1750654255414,-490.0,0.00032876,7]
[367090123,1750654255423,-8538.53,0.00032876,7]
[367090124,1750654255432,-490.0,0.00032876,7]
[367090125,1750654255441,-1479.74,0.00032876,7]
[367090126,1750654255450,-151.0,0.00032876,30]
[367090127,1750654255458,-490.0,0.00032876,7]
[367090128,1750654255467,-151.0,0.00032876,30]
[367090129,1750654255476,-151.0,0.00032876,30]
[367090130,1750654255485,-1515.68,0.00032876,7]
[367090131,1750654255494,-490.0,0.00032876,7]
[367090132,1750654255503,-2140.8,0.00032876,7]
[367090133,1750654255512,-490.0,0.00032876,7]
[367090134,1750654255521,-151.0,0.00032876,30]
[367090135,1750654255530,-500.0,0.00032876,7]
[367090136,1750654255539,-500.0,0.00032876,7]
[367090137,1750654255548,-500.0,0.00032876,7]
[367090138,1750654255557,-490.0,0.00032876,7]
[367090139,1750654255565,-500.0,0.00032876,7]
[367090140,1750654255574,-371.71832694,0.00032876,7]
[367090141,1750654255583,-500.0,0.00032876,7]
[367090142,1750654255591,-551.35212703,0.00032876,7]
[367090143,1750654255600,-623.01245954,0.00032876,7]
[367090144,1750654255609,-2537.72,0.00032876,7]
[367090145,1750654255619,-1027.94,0.00032876,7]
[367090146,1750654255628,-490.0,0.00032876,7]
[367090147,1750654255637,-838.59,0.00032876,7]
[367090148,1750654255646,-3543.89,0.00032876,7]
[367090149,1750654255656,-1794.79,0.00032876,7]
[367090150,1750654255665,-490.0,0.00032876,2]
[367090151,1750654255674,-5931.83,0.00032876,7]
[367090152,1750654255684,-1409.99,0.00032876,7]
[367090153,1750654255692,-493.6568795,0.00032876,7]
[367090154,1750654255701,-2002.86,0.00032876,7]
[367090155,1750654255711,-490.0,0.00032876,7]
[367090156,1750654255719,-1282.2,0.00032876,7]
[367090157,1750654255728,-2436.5,0.00032876,7]
[367090158,1750654255737,-490.0,0.00032876,7]
[367090159,1750654255746,-1069.47,0.00032876,7]
[367090160,1750654255755,-565.29,0.00032876,7]
[367090161,1750654255764,-1145.23,0.00032876,7]
[367090162,1750654255773,-1069.47,0.00032876,7]
[367090163,1750654255782,-1069.47,0.00032876,7]
[367090164,1750654255791,-2134.86,0.00032876,7]
[367090165,1750654255800,-1069.47,0.00032876,7]
[367090166,1750654255809,-490.0,0.00032876,7]
[367090167,1750654255818,-1069.47,0.00032876,7]
[367090168,1750654255828,-1069.47,0.00032876,7]
[367090169,1750654255836,-1069.47,0.00032876,7]
[367090170,1750654255845,-763.72,0.00032876,7]
[367090171,1750654255855,-490.0,0.00032876,7]
[367090172,1750654255864,-1306.64,0.00032876,7]
[367090173,1750654255873,-1490.75,0.00032876,7]
[367090174,1750654255882,-835.97,0.00032876,7]
[367090175,1750654255891,-1689.8,0.00032876,7]
[367090176,1750654255900,-878.53,0.00032876,7]
[367090177,1750654255909,-490.0,0.00032876,7]
[367090178,1750654255919,-1942.4,0.00032876,7]
[367090179,1750654255928,-2435.48,0.00032876,7]
[367090180,1750654255938,-563.92,0.00032876,7]
[367090181,1750654255947,-2321.83,0.00032876,7]
[367090182,1750654255957,-2021.27,0.00032876,7]
[367090183,1750654255966,-490.14866212,0.00032876,7]
[367090184,1750654255975,-490.0,0.00032876,7]
[367090185,1750654255984,-490.0,0.00032876,7]
[367090186,1750654255993,-490.0,0.00032876,7]
[367090187,1750654256002,-490.0,0.00032876,7]
[367090188,1750654256011,-832.17,0.00032876,7]
[367090189,1750654256020,-1716.26,0.00032876,7]
[367090190,1750654256029,-490.0,0.00032876,7]
[367090191,1750654256038,-490.0,0.00032876,7]
[367090192,1750654256048,-490.0,0.00032876,7]
[367090193,1750654256057,-411.6481574,0.00032876,7]
[367090194,1750654256067,-490.0,0.00032876,7]
[367090195,1750654256076,-490.0,0.00032876,7]
[367090196,1750654256085,-617.68,0.00032876,7]
[367090197,1750654256094,-1853.29,0.00032876,7]
[367090198,1750654256104,-357.33969762,0.00032876,7]
[367090199,1750654256115,-490.0,0.00032876,7]
[367090200,1750654256124,-490.0,0.00032876,7]
[367090201,1750654256134,-6617.48,0.00032876,7]
[367090202,1750654256143,-490.0,0.00032876,7]
[367090203,1750654256152,-867.55,0.00032876,7]
[367090204,1750654256162,-2580.22,0.00032876,7]
[367090205,1750654256171,-1083.46,0.00032876,7]
[367090206,1750654256181,-490.0,0.00032876,7]
[367090207,1750654256192,-12988.61,0.00032876,7]
[367090208,1750654256201,-490.0,0.00032876,7]
[367090209,1750654256211,-490.0,0.00032876,7]
[367090210,1750654256220,-542.43,0.00032876,7]
[367090211,1750654256230,-490.0,0.00032876,7]
[367090212,1750654256239,-491.24867324,0.00032876,7]
[367090213,1750654256248,-739.56,0.00032876,7]
[367090214,1750654256258,-4460.32,0.00032876,7]
[367090215,1750654256267,-490.0,0.00032876,7]
[367090216,1750654256277,-1979.61,0.00032876,7]
[367090217,1750654256286,-1485.85,0.00032876,7]
[367090218,1750654256295,-490.0,0.00032876,7]
[367090219,1750654256303,-5524.49,0.00032876,7]
[367090220,1750654256313,-490.0,0.00032876,7]
[367090221,1750654256322,-500.0,0.00032876,7]
[367090222,1750654256331,-651.27,0.00032876,7]
[367090223,1750654256340,-490.0,0.00032876,7]
[367090224,1750654256349,-490.0,0.00032876,7]
[367090225,1750654256358,-490.0,0.00032876,7]
[367090226,1750654256367,-490.0,0.00032876,7]
[367090227,1750654256376,-1635.55,0.00032876,7]
[367090228,1750654256385,-490.0,0.00032876,7]
[367090229,1750654256394,-1962.38,0.00032876,7]
[367090230,1750654256403,-699.02,0.00032876,7]
[367090231,1750654256412,-490.0,0.00032876,7]
[367090232,1750654256422,-1166.97,0.00032876,7]
[367090233,1750654256431,-490.0,0.00032876,7]
[367090234,1750654256440,-490.0,0.00032876,7]
[367090235,1750654256449,-16479.57,0.00032876,7]
[367090236,1750654256459,-490.0,0.00032876,7]
[367090237,1750654256468,-3318.43,0.00032876,7]
[367090238,1750654256478,-987.69,0.00032876,7]
[367090239,1750654256487,-9584.54,0.00032876,7]
[367090240,1750654256497,-3682.87,0.00032876,7]
[367090241,1750654256505,-536.48,0.00032876,7]
[367090242,1750654256514,-1774.95,0.00032876,7]
[367090243,1750654256523,-490.0,0.00032876,7]
[367090244,1750654256532,-490.0,0.00032876,7]
[367090245,1750654256542,-490.0,0.00032876,7]
[367090246,1750654256551,-3180.73,0.00032876,7]
[367090247,1750654256562,-490.0,0.00032876,7]
[367090248,1750654256571,-490.0,0.00032876,7]
[367090249,1750654256581,-490.0,0.00032876,7]
[367090250,1750654256591,-490.52716607,0.00032876,7]
[367090251,1750654256600,-878.59,0.00032876,7]
[367090252,1750654256609,-4276.69,0.00032876,7]
[367090253,1750654256618,-490.0,0.00032876,7]
[367090254,1750654256628,-735.74,0.00032876,7]
[367090255,1750654256637,-151.0,0.00032876,7]
[367090256,1750654256647,-187.919547,0.00032876,7]
[367090257,1750654256656,-2258.37,0.00032876,7]
[367090258,1750654256666,-354.6142256,0.00032876,7]
[367090259,1750654256675,-1968.26,0.00032876,7]
[367090260,1750654256684,-1807.52,0.00032876,7]
[367090261,1750654256693,-490.0,0.00032876,7]
[367090262,1750654256702,-490.0,0.00032876,7]
[367090263,1750654256711,-490.0,0.00032876,7]
[367090264,1750654256720,-151.0,0.00032876,7]
[367090265,1750654256731,-490.0,0.00032876,7]
[367090266,1750654256740,-151.0,0.00032876,7]
[367090267,1750654256749,-863.73,0.00032876,7]
[367090268,1750654256759,-514.87,0.00032876,7]
[367090269,1750654256769,-851.79,0.00032876,7]
[367090270,1750654256779,-4217.64,0.00032876,7]
[367090271,1750654256788,-151.0,0.00032876,7]
[367090272,1750654256797,-151.0,0.00032876,7]
[367090273,1750654256806,-490.0,0.00032876,7]
[367090274,1750654256816,-1781.57,0.00032876,7]
[367090275,1750654256825,-491.11470012,0.00032876,7]
[367090276,1750654256834,-151.0,0.00032876,7]
[367090277,1750654256843,-2039.85,0.00032876,7]
[367090278,1750654256852,-1996.43,0.00032876,7]
[367090279,1750654256860,-835.17,0.00032876,7]
[367090280,1750654256870,-1167.68,0.00032876,7]
[367090281,1750654256879,-151.0,0.00032876,7]
[367090282,1750654256888,-151.0,0.00032876,7]
[367090283,1750654256897,-490.0,0.00032876,7]
[367090284,1750654256906,-490.0,0.00032876,7]
[367090285,1750654256915,-490.0,0.00032876,7]
[367090286,1750654256924,-490.0,0.00032876,7]
[367090287,1750654256934,-491.79352016,0.00032876,7]
[367090288,1750654256944,-5782.36,0.00032876,7]
[367090289,1750654256953,-1730.74,0.00032876,7]
[367090290,1750654256964,-1984.15,0.00032876,7]
[367090291,1750654256973,-490.0,0.00032876,7]
[367090292,1750654256986,-583.16,0.00032876,7]
[367090293,1750654256995,-1299.08,0.00032876,7]
[367090294,1750654257005,-490.0,0.00032876,7]
[367090295,1750654257014,-490.0,0.00032876,7]
[367090296,1750654257024,-584.61398173,0.00032876,7]
[367090297,1750654257033,-1851.05,0.00032876,7]
[367090298,1750654257042,-490.0,0.00032876,7]
[367090299,1750654257051,-491.93741575,0.00032876,7]
[367090300,1750654257061,-2155.57,0.00032876,7]
[367090301,1750654257070,-2180.36,0.00032876,7]
[367090302,1750654257079,-1693.56,0.00032876,7]
[367090303,1750654257089,-1562.37,0.00032876,7]
[367090304,1750654257098,-2056.32,0.00032876,7]
[367090305,1750654257109,-490.0,0.00032876,7]
[367090306,1750654257126,-490.0,0.00032876,7]
[367090307,1750654257136,-974.07,0.00032876,7]
[367090308,1750654257145,-490.0,0.00032876,7]
[367090309,1750654257155,-490.57589849,0.00032876,7]
[367090310,1750654257165,-873.16,0.00032876,7]
[367090311,1750654257175,-490.0,0.00032876,7]
[367090312,1750654257184,-1733.62,0.00032876,7]
[367090313,1750654257193,-229.7621378,0.00032876,7]
[367090314,1750654257203,-1845.26,0.00032876,7]
[367090315,1750654257213,-543.56003654,0.00032876,7]
[367090316,1750654257222,-490.0,0.00032876,7]
[367090317,1750654257231,-647.41,0.00032876,7]
[367090318,1750654257241,-1469.24,0.00032876,7]
[367090319,1750654257251,-1326.79,0.00032876,7]
[367090320,1750654257260,-490.0,0.00032876,2]
[367090321,1750654257269,-490.0,0.00032876,7]
[367090322,1750654257278,-1747.03,0.00032876,7]
[367090323,1750654257287,-532.855562,0.00032876,7]
[367090324,1750654257298,-490.0,0.00032876,7]
[367090325,1750654257307,-1544.69,0.00032876,7]
[367090326,1750654257317,-2054.64,0.00032876,7]
[367090327,1750654257327,-490.0,0.00032876,7]
[367090328,1750654257336,-933.68,0.00032876,7]
[367090329,1750654257346,-810.39,0.00032876,7]
[367090330,1750654257356,-490.0,0.00032876,7]
[367090331,1750654257365,-2500.9,0.00032876,7]
[367090332,1750654257375,-1791.95,0.00032876,7]
[367090333,1750654257385,-316.51724291,0.00032876,7]
[367090334,1750654257395,-490.0,0.00032876,7]
[367090335,1750654257405,-490.0,0.00032876,7]
[367090336,1750654257414,-151.0,0.00032876,7]
[367090337,1750654257424,-490.0,0.00032876,7]
[367090338,1750654257434,-151.0,0.00032876,7]
[367090339,1750654257443,-4628.77,0.00032876,7]
[367090340,1750654257452,-490.0,0.00032876,7]
[367090341,1750654257462,-492.21730544,0.00032876,7]
[367090342,1750654257472,-1577.25,0.00032876,7]
[367090343,1750654257482,-490.0,0.00032876,7]
[367090344,1750654257492,-490.0,0.00032876,7]
[367090345,1750654257502,-1475.64,0.00032876,7]
[367090346,1750654257512,-490.0,0.00032876,7]
[367090347,1750654257521,-508.00948786,0.00032876,7]
[367090348,1750654257531,-490.0,0.00032876,7]
[367090349,1750654257540,-946.25,0.00032876,7]
[367090350,1750654257550,-1080.2,0.00032876,7]
[367090351,1750654257560,-490.0,0.00032876,7]
[367090352,1750654257570,-490.0,0.00032876,7]
[367090353,1750654257579,-490.0,0.00032876,7]
[367090354,1750654257589,-5581.72,0.00032876,7]
[367090355,1750654257598,-490.0,0.00032876,7]
[367090356,1750654257607,-867.5,0.00032876,7]
[367090357,1750654257617,-490.0,0.00032876,7]
[367090358,1750654257626,-1867.5,0.00032876,7]
[367090359,1750654257636,-490.0,0.00032876,7]
[367090360,1750654257646,-2817.35,0.00032876,7]
[367090361,1750654257656,-2899.48,0.00032876,7]
[367090362,1750654257666,-490.0,0.00032876,7]
[367090363,1750654257676,-1251.06,0.00032876,7]
[367090364,1750654257685,-490.0,0.00032876,7]
[367090365,1750654257695,-490.0,0.00032876,7]
[367090366,1750654257704,-1667.65,0.00032876,7]
[367090367,1750654257713,-490.0,0.00032876,7]
[367090368,1750654257722,-320.0,0.00032876,7]
[367090369,1750654257732,-490.0,0.00032876,7]
[367090370,1750654257741,-490.0,0.00032876,7]
[367090371,1750654257751,-2082.64,0.00032876,7]
[367090372,1750654257760,-490.0,0.00032876,7]
[367090373,1750654257769,-490.0,0.00032876,7]
[367090374,1750654257780,-1163.87,0.00032876,7]
[367090375,1750654257790,-151.0,0.00032876,7]
[367090376,1750654257799,-490.0,0.00032876,7]
[367090377,1750654257808,-788.59,0.00032876,7]
[367090378,1750654257818,-490.0,0.00032876,7]
[367090379,1750654257827,-491.34781076,0.00032876,7]
[367090380,1750654257836,-157.573564,0.00032876,7]
[367090381,1750654257846,-490.0,0.00032876,7]
[367090382,1750654257855,-766.4,0.00032876,7]
[367090383,1750654257864,-3124.09,0.00032876,7]
[367090384,1750654257873,-2165.19,0.00032876,7]
[367090385,1750654257883,-490.0,0.00032876,7]
[367090386,1750654257892,-1465.7,0.00032876,7]
[367090387,1750654257901,-490.0,0.00032876,7]
[367090388,1750654257911,-490.0,0.00032876,7]
[367090389,1750654257920,-493.00855477,0.00032876,7]
[367090390,1750654257930,-13309.13,0.00032876,7]
[367090391,1750654257940,-7426.49,0.00032876,7]
[367090392,1750654257949,-490.0,0.00032876,7]
[367090393,1750654257958,-490.0,0.00032876,7]
[367090394,1750654257967,-1901.1,0.00032876,7]
[367090395,1750654257976,-490.0,0.00032876,7]
[367090396,1750654257986,-890.49,0.00032876,7]
[367090397,1750654257996,-1982.24,0.00032876,7]
[367090398,1750654258005,-490.0,0.00032876,7]
[367090399,1750654258014,-1885.34,0.00032876,7]
[367090400,1750654258023,-153.334794,0.00032876,7]
[367090401,1750654258032,-490.0,0.00032876,7]
[367090402,1750654258042,-837.26,0.00032876,7]
[367090403,1750654258051,-490.0,0.00032876,7]
[367090404,1750654258060,-490.0,0.00032876,7]
[367090405,1750654258070,-490.0,0.00032876,7]
[367090406,1750654258079,-490.0,0.00032876,7]
[367090407,1750654258088,-894.13,0.00032876,7]
[367090408,1750654258098,-490.0,0.00032876,7]
[367090409,1750654258108,-490.0,0.00032876,7]
[367090410,1750654258121,-490.0,0.00032876,7]
[367090411,1750654258131,-490.0,0.00032876,7]
[367090412,1750654258140,-1694.58,0.00032876,7]
[367090413,1750654258150,-1293.41,0.00032876,7]
[367090414,1750654258162,-1804.56,0.00032876,7]
[367090415,1750654258171,-490.95624951,0.00032876,7]
[367090416,1750654258181,-34343.81,0.00032876,7]
[367090417,1750654258193,-490.0,0.00032876,7]
[367090418,1750654258202,-490.0,0.00032876,7]
[367090419,1750654258212,-605.23,0.00032876,7]
[367090420,1750654258222,-490.0,0.00032876,7]
[367090421,1750654258231,-490.0,0.00032876,7]
[367090422,1750654258241,-156.566593,0.00032876,7]
[367090423,1750654258251,-490.0,0.00032876,7]
[367090424,1750654258260,-490.0,0.00032876,7]
[367090425,1750654258270,-490.0,0.00032876,7]
[367090426,1750654258280,-1888.3,0.00032876,7]
[367090427,1750654258290,-490.0,0.00032876,7]
[367090428,1750654258299,-490.0,0.00032876,7]
[367090429,1750654258309,-8898.26,0.00032876,7]
[367090430,1750654258319,-490.0,0.00032876,7]
[367090431,1750654258329,-497.16471244,0.00032876,7]
[367090432,1750654258338,-490.0,0.00032876,7]
[367090433,1750654258348,-1935.47,0.00032876,7]
[367090434,1750654258358,-151.0,0.00032876,7]
[367090435,1750654258368,-1976.08,0.00032876,7]
[367090436,1750654258377,-151.0,0.00032876,7]
[367090437,1750654258387,-1276.19,0.00032876,7]
[367090438,1750654258396,-490.0,0.00032876,7]